Cogmind - Beta 9.3 @@@ ROGUE MODE // 2019.12.21 @ 18:34:19 // Winter2019/RPGLIKE Player: Spkaet Result: Destroyed by as-70529 with Assembled Heavy Rifle Performance ------------- Evolutions (1) 500 Regions Visited (3) 600 Robots Destroyed (18) 90 Value Destroyed (117) 117 Prototype IDs (0) 0 Alien Tech Used (0) 0 Bonus (-17) -17 TOTAL SCORE: 1290 Bonus ------- Follower Combat Kills 81 Friendly Fire -98 Cogmind --------- Core Integrity 0/650 Matter 208/300 Energy 116/250 System Corruption 0% Temperature Cool (0) Movement Rolling (90) Location -9/Mines Parts ------- > --- POWER (1) -------- Ion Engine > --- PROPULSION (2) --- Wheel Compact Wheel > --- UTILITY (2) ------ Recoil Stabilizer Weapon Cycler > --- WEAPON (2) ------- Gauss Cannon Grenade Launcher > --- INVENTORY (4) ---- Light Ion Engine Flight Unit EM Pulse Cannon EM Pulse Cannon Peak State ------------ > --- POWER ------------ Ion Engine > --- PROPULSION ------- Wheel Compact Wheel > --- UTILITY ---------- Recoil Stabilizer Weapon Cycler > --- WEAPON ----------- EM Pulse Cannon Gauss Cannon > --- INVENTORY -------- Light Ion Engine Flight Unit EM Pulse Cannon Grenade Launcher [Rating: 17] Favorites ----------- Power Ion Engine Engine Ion Engine Propulsion Compact Wheel Wheel Compact Wheel Flight Unit Flight Unit Utility Recoil Stabilizer Device Recoil Stabilizer Processor Seismic Analyzer Weapon EM Pulse Cannon Energy Cannon EM Pulse Cannon Ballistic Gun Assault Rifle Ballistic Cannon Gauss Cannon Launcher Grenade Launcher Build | -11 -10 -9 -9 ------- Run | Scr Mat Mat Min Slots Evolved 3 | . . 3 . Power . | . . . . Propulsion 1 | . . 1 . Utility 1 | . . 1 . Weapon 1 | . . 1 . Parts Attached 14 | 4 2 5 3 Power 1 | 1 . . . Engine 1 | 1 . . . Core . | . . . . Reactor . | . . . . Propulsion 4 | 1 1 2 . Treads . | . . . . Leg . | . . . . Wheel 3 | 1 . 2 . Hover . | . . . . Flight 1 | . 1 . . Utility 3 | 1 . 1 1 Device 2 | . . 1 1 Storage . | . . . . Processor 1 | 1 . . . Hackware . | . . . . Protection . | . . . . Artifact . | . . . . Weapon 6 | 1 1 2 2 Energy Gun . | . . . . Energy Cannon 1 | . . 1 . Ballistic Gun 2 | 1 . 1 . Ballistic Cannon 1 | . . . 1 Launcher 2 | . 1 . 1 Special Weapon . | . . . . Impact Weapon . | . . . . Slashing Weapon . | . . . . Piercing Weapon . | . . . . Special Melee Weapon . | . . . . Unidentified Prototypes . | . . . . Parts Lost . | . . . . Power . | . . . . Propulsion . | . . . . Utility . | . . . . Weapon . | . . . . Highest Loss Streak . | . . . . Average Slot Usage (%) 99 | . 100 90 100 Engine 16 | . 25 14 14 Wheel 25 | . 17 28 28 Flight 1 | . 7 . . Device 18 | . . 4 25 Processor 8 | . 25 14 2 Energy Cannon 10 | . . 7 13 Ballistic Gun 1 | . 3 7 . Ballistic Cannon 8 | . . . 11 Launcher 7 | . 21 14 2 Naked Turns . | . . . . Heaviest Build 20 | 7 8 15 20 Greatest Support 31 | 21 21 31 31 Greatest Overweight (x) . | . . . . Average Overweight (x) . | . . . . Largest Inventory Capacity 4 | 4 4 4 4 Average Capacity 3 | 3 4 4 4 Most Carried 4 | 4 4 4 4 Average Carried 3 | 2 3 2 3 Final Capacity 4 | 4 4 4 4 Final Carried 4 | 4 4 4 4 Class Distribution -------------------- 100% | Mutant Dominant Class ---------------- Mutant | -10/Materials Mutant | -9/Materials Mutant | -9/Mines Resources | -11 -10 -9 -9 ----------- Run | Scr Mat Mat Min Matter Collected 436 | 267 37 68 64 Remotely . | . . . . Salvage Created 265 | 64 53 . 148 Parts 23 | 10 4 . 9 Haulers Intercepted . | . . . . Recyclers Shooed . | . . . . Parts Field Recycled . | . . . . Retrieved Matter . | . . . . Parts Self-Destructed . | . . . . Prevented . | . . . . Kills | -11 -10 -9 -9 ------- Run | Scr Mat Mat Min Combat Hostiles Destroyed 13 | . 2 . 11 Cannons 9 | . . . 9 AOE 4 | . 2 . 2 Classes Destroyed 5 | 1 1 . 3 Worker 1 | . . . 1 Tunneler 4 | 3 . . 1 Swarmer 2 | . . . 2 Grunt 2 | . 2 . . Assembled 9 | . . . 9 Best Kill Streak 6 | 2 2 . 6 Combat Bots Only 6 | . 2 . 6 Max Kills in Single Turn 2 | 1 1 . 2 Gunslinging . | . . . . Exploded 2 | . 1 . 2 Melee . | . . . . Uniques/NPCs Destroyed . | . . . . Combat | -11 -10 -9 -9 -------- Run | Scr Mat Mat Min Damage Taken 766 | . 12 . 754 Core 652 | . 9 . 643 Absorbed by Shields . | . . . . Redirected to Core 395 | . 9 . 386 Core Remaining (%) 99 | 100 98 . . Volleys Fired 37 | 14 4 1 18 Largest 2 | 1 1 1 2 Hottest 111 | 20 30 63 111 Shots Fired 53 | 14 4 1 34 Gun 14 | 14 . . . Cannon 34 | . . 1 33 Launcher 5 | . 4 . 1 Special . | . . . . Kinetic 30 | 14 . . 16 Thermal . | . . . . Explosive 5 | . 4 . 1 Electromagnetic 18 | . . 1 17 Robot Hit Streak 11 | 4 . 4 11 Robot Miss Streak 3 | 3 . . 2 Penetration Max . | . . . . Secondary Targets . | . . . . Shots Hit Robots 29 | 9 . 1 19 Core Hits 22 | 4 2 . 16 Critical Hits 3 | . . . 3 Critical Kills 3 | . . . 3 Critical Parts Destroyed . | . . . . Melee Attacks . | . . . . Impact . | . . . . Slashing . | . . . . Piercing . | . . . . Sneak Attacks . | . . . . Combat Hostiles . | . . . . Follow-up Attacks . | . . . . Damage Inflicted 926 | 117 158 28 623 Guns 117 | 117 . . . Cannons 495 | . . 28 467 Explosions 314 | . 158 . 156 Melee . | . . . . Ramming . | . . . . Kinetic 450 | 117 . . 333 Thermal 79 | . . . 79 Explosive 235 | . 158 . 77 Electromagnetic 162 | . . 28 134 Impact . | . . . . Slashing . | . . . . Piercing . | . . . . Highest Corruption . | . . . . Average Corruption . | . . . . Corruption Purged . | . . . . Overload Shots . | . . . . Overflow Damage 11 | . 7 . 4 Projectiles . | . . . . Explosions 11 | . 7 . 4 Melee . | . . . . Knockbacks 5 | . . . 5 Impact . | . . . . Kinetic 3 | . . . 3 Secondary 2 | . . . 2 Self-Inflicted Damage 26 | . . . 26 Shots 1 | . . . 1 Rammed . | . . . . Targets Rammed . | . . . . Kicked . | . . . . Crushed . | . . . . Highest Temperature 224 | . . 10 224 Average Temperature 77 | . . 7 79 Received Heat Transfer 66 | . 6 . 60 Effects 1 | . . . 1 Energy Bleed 1 | . . . 1 Siege Activations . | . . . . Robots Corrupted . | . . . . Combat Hostiles . | . . . . Parts Fried . | . . . . Impact Corruptions . | . . . . Robots Melted . | . . . . Combat Hostiles . | . . . . Parts Melted . | . . . . Heat Transferred 100 | . . . 100 Parts Sabotaged . | . . . . Parts Stolen . | . . . . Parts Stripped . | . . . . Power Chain Reactions 1 | . . . 1 Missiles Intercepted . | . . . . Alert | -11 -10 -9 -9 ------- Run | Scr Mat Mat Min Peak Influence 201 | 15 106 44 201 Average Influence 59 | 5 22 44 83 Maximum Alert Level 1 | . . . 1 Low Security (%) 99 | 100 100 100 99 Level 1 . | . . . . Level 2 . | . . . . Level 3 . | . . . . Level 4 . | . . . . Level 5 . | . . . . High Security . | . . . . Max Security . | . . . . Squads Dispatched 1 | . 1 . . Investigation . | . . . . Extermination . | . . . . Reinforcement 1 | . 1 . . Assault . | . . . . Garrison . | . . . . Intercept . | . . . . Construction Impeded . | . . . . Haulers Reinforced . | . . . . Stealth | -11 -10 -9 -9 --------- Run | Scr Mat Mat Min Distress Signals 1 | . . 1 . Communications Jammed . | . . . . Distress Signals . | . . . . Times Spotted 36 | . 4 1 31 Peak Tracking Total 14 | . 2 1 14 Tactical Retreats 3 | . . . 3 Traps | -11 -10 -9 -9 ------- Run | Scr Mat Mat Min Traps Triggered . | . . . . Indirectly . | . . . . Trap Hack Attempts . | . . . . Triggered . | . . . . Disarmed . | . . . . Reprogrammed . | . . . . Reused . | . . . . Traps Extracted . | . . . . Installed . | . . . . Triggered . | . . . . Machines | -11 -10 -9 -9 ---------- Run | Scr Mat Mat Min Machines Disabled . | . . . . Max in Single Turn . | . . . . Machines Sabotaged . | . . . . Garrisons Compromised . | . . . . Overloaded Fab Kills . | . . . . Fab Network Shutdowns . | . . . . Hacking | -11 -10 -9 -9 --------- Run | Scr Mat Mat Min Machines Accessed 3 | . 2 . 1 Terminals 1 | . 1 . . Fabricators . | . . . . Repair Stations . | . . . . Recycling Units 1 | . 1 . . Scanalyzers . | . . . . Garrison Access . | . . . . Total Hacks 7 | . 6 . 1 Successful 6 | . 5 . 1 Failed 1 | . 1 . . Catastrophic . | . . . . Database Lockouts . | . . . . Manual . | . . . . Terminals 3 | . 3 . . Fabricators . | . . . . Repair Stations . | . . . . Recycling Units 3 | . 3 . . Scanalyzers . | . . . . Garrison Access . | . . . . Terminal Hacks 4 | . 3 . 1 Record 1 | . 1 . . Open Door 1 | . . . 1 Terminal Index 1 | . 1 . . Dispatch Records 1 | . 1 . . Fabricator Hacks . | . . . . Repair Station Hacks . | . . . . Recycling Unit Hacks 2 | . 2 . . Process 1 | . 1 . . Report Inventory 1 | . 1 . . Scanalyzer . | . . . . Garrison Access Hacks . | . . . . Unauthorized Hacks . | . . . . Terminals . | . . . . Fabricators . | . . . . Repair Stations . | . . . . Recycling Units . | . . . . Scanalyzers . | . . . . Garrison Access . | . . . . Data Cores Recovered . | . . . . Used . | . . . . Hacking Detections . | . . . . Full Trace Events . | . . . . Feedback Events . | . . . . Feedback Blocked . | . . . . Robot Schematics Acquired . | . . . . Robots Built . | . . . . Matter . | . . . . Time . | . . . . Total Robot Build Rating . | . . . . Part Schematics Acquired . | . . . . Parts Built . | . . . . Matter . | . . . . Time . | . . . . Total Part Build Rating . | . . . . Parts Repaired . | . . . . Time . | . . . . Parts Recycled . | . . . . Recycled Matter 12 | . 12 . . Retrieved Matter . | . . . . Retrieved Components . | . . . . Parts Scanalyzed . | . . . . Part Schematics Acquired . | . . . . Parts Damaged . | . . . . Bothacking | -11 -10 -9 -9 ------------ Run | Scr Mat Mat Min Used RIF Installer . | . . . . Robots Hacked . | . . . . Non-combat . | . . . . Combat . | . . . . Robot Hacks Applied . | . . . . Relay Couplers Released . | . . . . Robots Rewired . | . . . . Allies Hacked . | . . . . Hacks Repelled . | . . . . Allies | -11 -10 -9 -9 -------- Run | Scr Mat Mat Min Total Allies 3 | . . . 3 Largest Group 3 | . . . 3 Highest-Rated Group 40 | . . . 40 Highest-Rated Ally 16 | . . . 16 Total Orders . | . . . . Ally Attacks 27 | . . . 27 Total Damage 254 | . . . 254 Kills 5 | . . . 5 Allies Corrupted . | . . . . Allies Melted . | . . . . Intel | -11 -10 -9 -9 ------- Run | Scr Mat Mat Min Robot Analysis Total . | . . . . Derelict Logs Recovered 1 | . . . 1 Drone Launches . | . . . . Drone Recoveries . | . . . . Exploration | -11 -10 -9 -9 ------------- Run | Scr Mat Mat Min Turns Passed 698 | 86 124 67 421 Spaces Moved 662 | 54 151 63 394 Core 15 | 15 . . . Treads . | . . . . Legs . | . . . . Wheels 574 | 39 82 59 394 Hover . | . . . . Flight 73 | . 69 4 . Fastest Speed 40 | 50 40 40 90 Average Speed 85 | 86 72 86 90 Slowest Speed 100 | 100 100 90 90 Overloaded Moves . | . . . . Propulsion Burnouts . | . . . . Robots Hopped 1 | . 1 . . Cave-ins Triggered . | . . . . Exploration Rate (%) 25 | 3 26 7 66 Regions Visited 3 Branch Regions 1 Pre-discovered Areas . | . . . . Known Exits Taken . | . . . . Unknown Exits Taken 3 | 1 1 1 . Scrap Searched . | . . . . Spaces Dug . | . . . . Terrain Destroyed 25 | . 8 . 17 Melee . | . . . . Projectile 6 | . . . 6 AOE 19 | . 8 . 11 Actions | -11 -10 -9 -9 --------- Run | Scr Mat Mat Min Total 744 | 78 159 73 434 Wait 15 | . . . 15 Move 657 | 53 148 62 394 Hop 1 | . 1 . . Pick Up 14 | 6 2 4 2 Fast Attach 3 | 3 . . . Attach 5 | 1 . 3 1 Detach . | . . . . Swap 6 | . 2 2 2 Drop 6 | 1 2 1 2 Fire 37 | 14 4 1 18 Melee . | . . . . Ram . | . . . . Kick . | . . . . Crush . | . . . . Escape Stasis . | . . . . Rewire . | . . . . Trap . | . . . . Miscellaneous . | . . . . Route ------- -11/Scrapyard -10/Materials -9/Materials -9/Mines (discovered 2 exits: [*Mat x2]) History --------- Turn | Location | Event 10 | -11/Scrapyard | Discovered new exit (range 16) 87 | -11/Scrapyard | Entered Materials 208 | -10/Materials | Discovered new exit (range 5) 211 | -10/Materials | Entered another Materials area 213 | -9/Materials | Reached level 2 213 | -9/Materials | Upgraded with Propulsion slot (x1) 213 | -9/Materials | Upgraded with Utility slot (x1) 213 | -9/Materials | Upgraded with Weapon slot (x1) 237 | -9/Materials | Discovered new exit (range 16) 278 | -9/Materials | Entered Mines 285 | -9/Mines | Assisted by bots powering up and referring to "LRC-V3" 317 | -9/Mines | Build established: Mutant 320 | -9/Mines | Met a Derelict who couldn't figure out how to use a Trap Extractor 404 | -9/Mines | Discovered new exit (range 7) 496 | -9/Mines | Discovered new exit (range 7) 548 | -9/Mines | Learned location of 1 exit from Materials 601 | -9/Mines | Assembled infested the area 620 | -9/Mines | Reached level 3 661 | -9/Mines | Core integrity fell below 50% 686 | -9/Mines | Core integrity fell below 20% 699 | -9/Mines | Destroyed by as-70529 with Assembled Heavy Rifle Last Messages --------------- 00628_ as-00450 destroyed. 00628_ as-49220 destroyed. 00629_ D-53 Grenadier knocked back. 00631_ Slug penetrates Trooper 2b. 00631_ Trooper 2b knocked back. 00633_ Overheating: Energy bleed (-18). 00635_ D-53 Grenadier destroyed. 00637_ Trooper 2b destroyed. 00650_ Slug penetrates Wall. 00650_ as-11942 destroyed. 00652_ as-37268 destroyed. 00655_ as-45254 destroyed. 00658_ Slug penetrates Wall. 00658_ as-09994 suffers critical hit. 00658_ as-09994 destroyed. 00671_ as-28834 knocked back. 00671_ as-36807 destroyed. 00671_ as-28834 destroyed. 00694_ as-64005 destroyed. 00694_ as-32346 destroyed. Map ----- +----------------------------------------------------+ | ?????????????????????????????????????????????????? | | ??????????? ?????????????????????????????????????? | | ??????????? ?????????????????????????????????????? | | ??????????? ?????????????????????????????????????? | | ??????????? ?????????????????????????????????????# | | ??????????? ?????????????????????????????????????# | | ??????????? ?????????????????????????????????##### | | ??????????# ????????????????????????????????##""## | | ?????????? #???????????????????????????????#"=! # | | ?????????? ???????????????????????????????#"! ! | | ?????????? #???????????????????????????????#"! | | ??????????# #???????????????????????????????#" !!# | | ??????????# #???????????????????????????????## ## | | ??????##### ##??????????????????????????????###### | | ?????## % ##???????????????????????????????###? | | ??#### ! #?#????????????????????????????????# | | ?## = % # #### #???????###???????????????## | | ?# % % !%] %%" #??????# ##??????????????# | | ?# ##### #???????? #?????????####?# | | ?## # #???# ????##### #????###### #### | | ??# #??????# ???## #????# < ### | | ?## #??????# ??## #????# !! ## | | ?# #??????# #?# ##???# !! # | | ?# ##??????# ### #???# %% | | ?## % ##??????## ## ??????## %% | | ??##% ############ @ #?????????# ## | | ##"%% #??# ##?????????# #### | | #??# ##??????????# #??### | | "#####?## ###### ##???????????# #????? | | ###?????" #????# % ##?###???????# #????? | | #?????# #????# % ### ##??????## ##????? | | ## #?????# #???## ##??????######?????? | | ?# ####### ##?## #?????????????????? | | ?#%% ### ##### #?????????????????# | | ?######## ##aa ######??## #?????????????????# | | ????????# a##??????## #????????????????## | | ????????# #???????# #???????????????## | | ???????# #### #??????# #?????????####?## | | ??????# #??# #??????# < #??????#### ### | | ?????# #?? #??????## #???#### | | ???? ? #??????## #??## | | ?? #???????## #??# | #### | | ?# ### ##????????# #### ### | | # #?#######?????????# !%= ! ## | | #?????????????????# # | | #?????????????????####### ### # | | ????????????????????????# ##?# ## | | #????????????????????????# ####??# #? | | ######?????????????????????????# #?????## "#? | | #???????????????????????????????# #???????####? | +----------------------------------------------------+ Best States ------------- Heat Dissipation 31 Energy Generation 10 Energy Capacity 250 Matter Stores 300 Matter Capacity 300 Sight Range 17 Terrain Scan Density 60 Weapon Cycling 15 Evasion (%) 62 Recoil Reduction 2 Item Schematics ----------------- None Robot Schematics ------------------ None Fabricated ------------ Nothing Alien Tech Used ----------------- None Achievements -------------- None Challenges ------------ None RPGLIKE | -11 -10 -9 -9 --------- Run | Scr Mat Mat Min Levels Raised 2 | . . 1 1 XP Earned 6263 | 3000 250 1500 1513 XP Spent 4475 | 2975 . 1500 . Upgrades 12 | 9 . 3 . Propulsion Slot 1 | . . 1 . Utility Slot 1 | . . 1 . Weapon Slot 1 | . . 1 . Core Integrity 1 | 1 . . . Heat Dissipation 1 | 1 . . . Mass Support 1 | 1 . . . Inventory Capacity 4 | 4 . . . Sight Range 1 | 1 . . . KI Damage % 1 | 1 . . . Protomatter Created 38 | . . . 38 Protomatter Decayed 50 | . . . 50 Game ------ Seed RestorationHeartPit Manual? 0 Play Time 00:16:12 Cumulative 10.2 hours Start 2019.12.21 @ 18:19:06 End 2019.12.21 @ 18:34:19 Sessions 1 Manual Loads 0 Difficulty Rogue Special Mode Winter2019/RPGLIKE Game No. 19 Rogue 19 Adventurer 0 Explorer 0 Win Type - Total 0 Types 0/0/0/0/0/0/0 Lore% 7 Gallery% 13 Achievement% 11 Wizard Run 0 Options --------- ASCII 0 Keyboard 0 Movement Numpad Keybinds 0 Fullscreen 1 Font 12/Smallcaps Map View 83x54 Tactical HUD 1 Map Filters NONE Filters NONE Steam 1 RUN: 45643932-9b2c-41ef-9083-4aa8f43a14a7